[Event "Malawi Open Chess Chp"]
[Site "followchess.com"]
[Date "2022.06.12"]
[Round "8"]
[White "Kaunda, Kajani"]
[Black "Mawango Davie"]
[Result "0-1"]
[WhiteElo "1910"]
[BlackElo "1888"]
[ECO "B01"]
[WhiteFed "MAW"]
[BlackFed "MAW"]
[FCGameId "-46968414"]
[WhiteFideId "16400089"]
[BlackFideId "20500238"]
[TimeControl "5400"]

1. e4 {[%clk 1:29:43]} d5 {[%clk 1:29:38]} 2. d3 {[%clk 1:29:10]} dxe4 
{[%clk 1:29:25]} 3. dxe4 {[%clk 1:29:00]} Qxd1+ {[%clk 1:29:17]} 4. Kxd1 
{[%clk 1:28:58]} Nc6 {[%clk 1:29:06]} 5. c3 {[%clk 1:28:57]} Nf6 
{[%clk 1:28:46]} 6. f3 {[%clk 1:28:56]} e5 {[%clk 1:28:24]} 7. Be3 
{[%clk 1:28:54]} Be6 {[%clk 1:28:05]} 8. Nd2 {[%clk 1:28:52]} O-O-O 
{[%clk 1:27:55]} 9. Kc2 {[%clk 1:28:47]} Nh5 10. b4 {[%clk 1:26:45]} Kb8 
{[%clk 1:25:52]} 11. a4 {[%clk 1:25:45]} f5 {[%clk 1:25:36]} 12. a5 
{[%clk 1:25:29]} f4 {[%clk 1:25:18]} 13. Bf2 {[%clk 1:25:11]} b6 
{[%clk 1:22:15]} 14. Bb5 {[%clk 1:21:27]} Bd7 {[%clk 1:21:49]} 15. Ba4 b5 
{[%clk 1:19:16]} 16. Bb3 {[%clk 1:19:04]} g5 {[%clk 1:15:34]} 17. Ne2 
{[%clk 1:17:46]} Nf6 18. Nc1 {[%clk 1:17:17]} h5 {[%clk 1:07:33]} 19. Nd3 
{[%clk 1:13:42]} g4 {[%clk 1:06:10]} 20. Nc5 {[%clk 1:12:50]} Bh6 21. Bh4 
{[%clk 1:04:47]} Bg7 {[%clk 0:58:13]} 22. Bf7 {[%clk 0:40:28]} Kc8 
{[%clk 0:53:20]} 23. Ndb3 {[%clk 0:35:13]} Kb8 {[%clk 0:44:54]} 24. Rad1 
{[%clk 0:24:32]} Bc8 {[%clk 0:37:50]} 25. Bd5 {[%clk 0:18:31]} Ne7 26. Bf7 
{[%clk 0:13:36]} Rd6 {[%clk 0:28:23]} 27. Rd3 Rf8 {[%clk 0:26:36]} 28. Bxf6 
{[%clk 0:09:40]} Rxf7 {[%clk 0:26:26]} 29. Bxe7 {[%clk 0:08:22]} Rxe7 
{[%clk 0:26:18]} 30. Rhd1 {[%clk 0:08:16]} Rxd3 {[%clk 0:23:17]} 31. Rxd3 
{[%clk 0:08:14]} Re8 {[%clk 0:23:06]} 32. a6 {[%clk 0:06:15]} gxf3 
{[%clk 0:21:10]} 33. gxf3 {[%clk 0:06:11]} Ka8 {[%clk 0:17:57]} 34. Rd5 
{[%clk 0:04:43]} Bf8 {[%clk 0:15:25]} 35. Kd3 {[%clk 0:04:09]} c6 
{[%clk 0:14:59]} 36. Rd7 {[%clk 0:03:09]} Bxd7 {[%clk 0:14:48]} 37. Nxd7 
{[%clk 0:03:08]} Rd8 {[%clk 0:14:38]} 0-1

[Event "Malawi Open Chess Chp"]
[Site "followchess.com"]
[Date "2022.06.11"]
[Round "4"]
[White "Mwape Dennis"]
[Black "Foster Ken"]
[Result "1/2-1/2"]
[WhiteElo "2013"]
[BlackElo "1886"]
[ECO "A05"]
[WhiteFed "ZAM"]
[BlackFed "MAW"]
[FCGameId "-1206557068"]
[WhiteFideId "8708886"]
[BlackFideId "20502109"]
[TimeControl "5400"]

1. Nf3 {[%clk 1:26:29]} Nf6 {[%clk 1:13:09]} 2. g3 {[%clk 1:26:20]} d5 
{[%clk 1:10:51]} 3. d3 {[%clk 1:26:15]} Nc6 {[%clk 1:10:32]} 4. Nbd2 
{[%clk 1:26:12]} e5 {[%clk 1:10:22]} 5. e4 {[%clk 1:26:07]} d4 {[%clk 1:09:44]} 
6. Bg2 {[%clk 1:26:03]} Be7 {[%clk 1:08:46]} 7. O-O {[%clk 1:25:12]} O-O 
{[%clk 1:08:44]} 8. h3 {[%clk 1:23:41]} Be6 {[%clk 1:08:37]} 9. Ng5 
{[%clk 1:23:39]} Bd7 {[%clk 1:08:05]} 10. f4 {[%clk 1:23:38]} h6 
{[%clk 1:06:39]} 11. Ngf3 {[%clk 1:20:33]} exf4 {[%clk 1:03:39]} 12. gxf4 
{[%clk 1:20:26]} Nh5 {[%clk 1:03:08]} 13. Nc4 {[%clk 1:18:32]} Be6 
{[%clk 1:00:04]} 14. Nfe5 {[%clk 1:17:52]} g6 {[%clk 0:59:10]} 15. Nxc6 
{[%clk 1:15:24]} bxc6 {[%clk 0:58:41]} 16. Na5 {[%clk 1:14:45]} Ng3 
{[%clk 0:56:22]} 17. Nxc6 {[%clk 1:13:19]} Qe8 {[%clk 0:56:20]} 18. Nxe7+ 
{[%clk 1:13:09]} Qxe7 {[%clk 0:56:18]} 19. Rf3 {[%clk 1:13:07]} Qh4 
{[%clk 0:54:43]} 20. Bd2 {[%clk 1:11:38]} Nh5 {[%clk 0:51:32]} 21. f5 
{[%clk 1:09:05]} gxf5 {[%clk 0:50:53]} 22. Bxh6 {[%clk 1:09:04]} Ng7 
{[%clk 0:48:55]} 23. Bxg7 {[%clk 1:08:39]} Kxg7 {[%clk 0:48:54]} 24. exf5 
{[%clk 1:08:21]} Bd5 {[%clk 0:47:42]} 25. Rf2 {[%clk 1:08:19]} Bxg2 
{[%clk 0:46:41]} 26. Rxg2+ {[%clk 1:08:17]} Kf6 {[%clk 0:46:36]} 27. Qg4 
{[%clk 1:07:57]} Qxg4 {[%clk 0:45:33]} 28. hxg4 Rae8 {[%clk 0:44:41]} 29. Kf2 
{[%clk 1:06:34]} Re3 {[%clk 0:44:19]} 30. Re1 {[%clk 1:06:21]} Rfe8 
{[%clk 0:44:07]} 31. Rxe3 {[%clk 1:06:16]} Rxe3 {[%clk 0:42:56]} 32. Rg3 
{[%clk 1:06:02]} Re5 33. Rh3 {[%clk 0:42:53]} Rc5 {[%clk 0:42:12]} 34. c4 
{[%clk 0:42:26]} dxc3 35. bxc3 Rxc3 36. Ke3 Ra3 37. Rh2 {[%clk 0:39:54]} Kg5 
{[%clk 0:41:38]} 38. Rg2 {[%clk 0:39:46]} c5 {[%clk 0:41:28]} 39. Ke4 
{[%clk 0:36:45]} f6 {[%clk 0:40:26]} 40. Kd5 {[%clk 0:34:29]} Ra5 
{[%clk 0:37:16]} 41. Kc6 {[%clk 0:34:21]} Ra3 {[%clk 0:36:15]} 42. Kxc5 
{[%clk 0:30:54]} Rxd3 {[%clk 0:36:13]} 43. Kb5 {[%clk 0:27:54]} Rd4 
{[%clk 0:35:24]} 44. a4 {[%clk 0:27:21]} Rxg4 {[%clk 0:34:33]} 45. Rxg4+ 
{[%clk 0:14:12]} Kxg4 {[%clk 0:34:32]} 46. a5 {[%clk 0:14:11]} Kxf5 
{[%clk 0:34:01]} 47. Ka6 {[%clk 0:14:10]} Kg4 {[%clk 0:33:59]} 48. Kxa7 
{[%clk 0:14:09]} f5 {[%clk 0:33:59]} 49. Kb6 {[%clk 0:14:09]} f4 
{[%clk 0:33:57]} 50. a6 {[%clk 0:14:08]} f3 {[%clk 0:33:56]} 51. a7 
{[%clk 0:14:08]} f2 {[%clk 0:33:54]} 52. a8=Q f1=Q {[%clk 0:33:49]} 53. Qg8+ Kf3 
{[%clk 0:33:43]} 54. Qf7+ {[%clk 0:14:01]} Ke2 {[%clk 0:33:41]} 55. Qc4+ 
{[%clk 0:13:57]} Kf2 {[%clk 0:33:39]} 56. Qf4+ {[%clk 0:13:55]} Kg2 
{[%clk 0:33:38]} 57. Qg4+ {[%clk 0:13:50]} Kf2 {[%clk 0:00:00]} 58. Qf5+ 
{[%clk 0:10:17]} Kg2 {[%clk 0:32:53]} 59. Qg5+ {[%clk 0:09:36]} 1/2-1/2

[Event "Malawi Open Chess Chp"]
[Site "followchess.com"]
[Date "2022.06.11"]
[Round "4"]
[White "Mwape, William"]
[Black "Mwale, George"]
[Result "0-1"]
[WhiteElo "2177"]
[BlackElo "2025"]
[ECO "D55"]
[WhiteFed "ZAM"]
[BlackFed "MAW"]
[FCGameId "-1279056244"]
[WhiteFideId "8705453"]
[BlackFideId "20500254"]
[TimeControl "5400"]

1. d4 {[%clk 1:25:02]} Nf6 {[%clk 1:29:53]} 2. c4 {[%clk 1:24:58]} e6 
{[%clk 1:29:28]} 3. Nf3 {[%clk 1:24:55]} d5 {[%clk 1:29:12]} 4. Nc3 
{[%clk 1:24:39]} Be7 {[%clk 1:29:01]} 5. Bg5 {[%clk 1:24:35]} O-O 
{[%clk 1:28:18]} 6. e3 {[%clk 1:24:33]} b6 {[%clk 1:26:50]} 7. Bxf6 
{[%clk 1:23:55]} Bxf6 {[%clk 1:26:46]} 8. Qc2 {[%clk 1:23:50]} Bb7 
{[%clk 1:24:10]} 9. Bd3 {[%clk 1:23:34]} h6 {[%clk 1:23:56]} 10. cxd5 
{[%clk 1:23:22]} exd5 {[%clk 1:23:49]} 11. g4 {[%clk 1:22:03]} c5 12. O-O-O 
{[%clk 1:21:33]} cxd4 {[%clk 1:17:39]} 13. exd4 {[%clk 1:21:32]} Bh4 
{[%clk 1:16:06]} 14. Kb1 {[%clk 1:20:05]} Qf6 {[%clk 1:15:15]} 15. Qe2 
{[%clk 1:19:52]} Nd7 {[%clk 1:13:45]} 16. g5 {[%clk 1:15:09]} Bxg5 
{[%clk 1:12:28]} 17. Nxg5 {[%clk 1:14:54]} Qxg5 {[%clk 1:12:11]} 18. Rhg1 
{[%clk 1:14:25]} Qf6 {[%clk 1:08:39]} 19. Qh5 {[%clk 1:13:36]} Kh8 
{[%clk 1:04:00]} 20. Rg3 {[%clk 1:07:22]} Rae8 {[%clk 0:51:49]} 21. Rf3 
{[%clk 0:56:50]} Qe6 {[%clk 0:46:19]} 22. Rg1 {[%clk 0:54:44]} Nf6 23. Qh4 
{[%clk 0:54:26]} Ne4 {[%clk 0:42:17]} 24. Rf4 {[%clk 0:36:33]} g5 
{[%clk 0:38:09]} 25. Rxg5 {[%clk 0:32:50]} Nxg5 {[%clk 0:35:58]} 26. Rf5 
{[%clk 0:31:42]} Ba6 {[%clk 0:29:22]} 27. Bc2 {[%clk 0:30:12]} Qe1+ 
{[%clk 0:27:07]} 28. Nd1 {[%clk 0:30:08]} Bd3 {[%clk 0:25:32]} 29. Qxh6+ 
{[%clk 0:28:24]} Nh7 {[%clk 0:25:14]} 30. Qh5 {[%clk 0:20:41]} Bxc2+ 31. Kxc2 
Re2+ {[%clk 0:24:17]} 32. Kb3 {[%clk 0:20:15]} Qxd1+ {[%clk 0:24:03]} 33. Ka3 
{[%clk 0:20:04]} Qd3+ {[%clk 0:23:27]} 34. Ka4 {[%clk 0:19:32]} Qa6+ 
{[%clk 0:22:54]} 35. Kb3 {[%clk 0:18:47]} Qb5+ {[%clk 0:22:49]} 36. Ka3 
{[%clk 0:18:42]} Qxb2+ {[%clk 0:22:06]} 37. Ka4 {[%clk 0:18:40]} Qxa2+ 
{[%clk 0:21:40]} 0-1

[Event "Malawi Open Chess Chp"]
[Site "followchess.com"]
[Date "2022.06.11"]
[Round "4"]
[White "Mwazozo Hope"]
[Black "Mwale, Joseph"]
[Result "1-0"]
[WhiteElo "1765"]
[BlackElo "2154"]
[ECO "D05"]
[WhiteFed "MAW"]
[BlackFed "MAW"]
[FCGameId "-142530112"]
[WhiteFideId "20500513"]
[BlackFideId "16400135"]
[TimeControl "5400"]

1. d4 {[%clk 1:30:00]} d5 {[%clk 1:26:52]} 2. Nf3 {[%clk 1:29:47]} Nf6 
{[%clk 1:25:45]} 3. e3 {[%clk 1:29:25]} e6 {[%clk 1:25:28]} 4. Bd3 
{[%clk 1:29:14]} c5 5. b3 {[%clk 1:28:57]} Bd6 {[%clk 1:17:23]} 6. Bb2 
{[%clk 1:28:39]} Nc6 {[%clk 1:16:50]} 7. Ne5 {[%clk 1:27:31]} cxd4 
{[%clk 1:09:38]} 8. exd4 {[%clk 1:27:19]} Nd7 {[%clk 0:59:55]} 9. f4 
{[%clk 1:24:54]} Bxe5 {[%clk 0:53:29]} 10. fxe5 {[%clk 1:23:09]} Qh4+ 
{[%clk 0:47:49]} 11. g3 {[%clk 1:22:48]} Qg5 {[%clk 0:47:16]} 12. Qf3 
{[%clk 1:21:56]} f5 {[%clk 0:39:19]} 13. exf6 {[%clk 1:19:55]} Nxf6 
{[%clk 0:33:39]} 14. O-O {[%clk 1:17:30]} Bd7 {[%clk 0:32:37]} 15. Bc1 
{[%clk 1:13:21]} Qg4 {[%clk 0:31:48]} 16. Qxg4 {[%clk 1:12:30]} Nxg4 
{[%clk 0:31:43]} 17. c3 {[%clk 1:11:54]} Nf6 {[%clk 0:27:57]} 18. Nd2 
{[%clk 1:09:07]} O-O {[%clk 0:26:11]} 19. Nf3 {[%clk 1:08:36]} a6 
{[%clk 0:22:40]} 20. Bf4 {[%clk 1:07:40]} b5 {[%clk 0:21:30]} 21. Rae1 
{[%clk 1:06:36]} Rac8 {[%clk 0:20:37]} 22. Bd6 {[%clk 0:59:25]} Rfe8 
{[%clk 0:19:56]} 23. Re2 {[%clk 0:57:58]} Nd8 {[%clk 0:18:06]} 24. Bc5 
{[%clk 0:55:53]} Nb7 {[%clk 0:15:17]} 25. b4 {[%clk 0:55:32]} Nxc5 
{[%clk 0:12:48]} 26. bxc5 {[%clk 0:49:35]} Re7 {[%clk 0:12:44]} 27. Rfe1 
{[%clk 0:48:15]} h6 {[%clk 0:11:41]} 28. Ne5 {[%clk 0:47:33]} Be8 
{[%clk 0:10:03]} 29. Ng6 {[%clk 0:46:50]} Bxg6 {[%clk 0:09:45]} 30. Bxg6 
{[%clk 0:46:31]} Rc6 {[%clk 0:09:31]} 31. a4 {[%clk 0:41:45]} Nd7 
{[%clk 0:07:05]} 32. axb5 {[%clk 0:40:46]} axb5 {[%clk 0:07:04]} 33. Bd3 
{[%clk 0:40:12]} Kf7 {[%clk 0:06:04]} 34. Bxb5 {[%clk 0:39:35]} Rc7 
{[%clk 0:06:02]} 35. Bxd7 {[%clk 0:34:27]} Rcxd7 {[%clk 0:05:59]} 36. Rf1+ 
{[%clk 0:34:00]} Kg6 {[%clk 0:05:43]} 37. Rfe1 {[%clk 0:33:16]} Kf7 
{[%clk 0:05:36]} 38. Kf2 {[%clk 0:30:14]} Ra7 {[%clk 0:05:22]} 39. Kf3 
{[%clk 0:29:50]} Ra3 {[%clk 0:05:07]} 40. Re3 {[%clk 0:29:27]} Ra2 
{[%clk 0:04:57]} 1-0

[Event "Malawi Open Chess Chp"]
[Site "followchess.com"]
[Date "2022.06.11"]
[Round "4"]
[White "Mpinganjira Stanley Frank"]
[Black "Chimthere, Alfred Charles"]
[Result "0-1"]
[WhiteElo "1700"]
[BlackElo "2047"]
[ECO "B32"]
[WhiteFed "MAW"]
[BlackFed "MAW"]
[FCGameId "1533509402"]
[WhiteFideId "20501960"]
[BlackFideId "16400046"]
[TimeControl "5400"]

1. e4 {[%clk 1:23:37]} c5 {[%clk 1:28:39]} 2. Nf3 {[%clk 1:23:19]} Nc6 
{[%clk 1:28:15]} 3. d4 {[%clk 1:23:12]} cxd4 {[%clk 1:28:07]} 4. Nxd4 
{[%clk 1:23:05]} e5 {[%clk 1:24:57]} 5. Nxc6 {[%clk 1:22:11]} bxc6 
{[%clk 1:24:05]} 6. c4 {[%clk 1:21:52]} Nf6 {[%clk 1:23:42]} 7. Nc3 
{[%clk 1:20:06]} Bc5 {[%clk 1:21:43]} 8. Be2 {[%clk 1:19:57]} O-O 
{[%clk 1:21:13]} 9. O-O {[%clk 1:19:50]} Bd4 {[%clk 1:20:26]} 10. Bg5 
{[%clk 1:18:53]} h6 {[%clk 1:20:07]} 11. Bxf6 {[%clk 1:18:44]} Qxf6 
{[%clk 1:19:43]} 12. Qc2 {[%clk 1:18:22]} d6 13. Rad1 {[%clk 1:17:03]} Qg6 
{[%clk 1:18:11]} 14. b4 {[%clk 1:16:10]} f5 {[%clk 1:17:22]} 15. exf5 
{[%clk 1:15:43]} Bxf5 {[%clk 1:17:13]} 16. Bd3 {[%clk 1:15:28]} Bxd3 
{[%clk 0:58:44]} 17. Qxd3 {[%clk 1:15:16]} Qxd3 {[%clk 0:57:44]} 18. Rxd3 
{[%clk 1:14:26]} Rab8 {[%clk 0:57:17]} 19. a3 {[%clk 1:13:41]} a5 
{[%clk 0:56:59]} 20. Ne2 {[%clk 1:09:59]} axb4 {[%clk 0:51:21]} 21. Nxd4 
{[%clk 1:09:48]} exd4 {[%clk 0:51:08]} 22. axb4 {[%clk 1:09:41]} c5 
{[%clk 0:50:10]} 23. b5 {[%clk 1:09:26]} d5 {[%clk 0:49:40]} 24. cxd5 
{[%clk 1:07:12]} Rxb5 {[%clk 0:48:13]} 25. Re1 {[%clk 1:07:01]} Rd8 
{[%clk 0:47:54]} 26. h4 {[%clk 1:06:31]} Rxd5 {[%clk 0:45:53]} 27. Re7 
{[%clk 1:06:23]} Rf5 {[%clk 0:44:27]} 28. Ra3 {[%clk 1:04:28]} Rb6 
{[%clk 0:43:43]} 29. Raa7 {[%clk 1:02:47]} Rg6 {[%clk 0:43:12]} 30. Rac7 
{[%clk 1:00:18]} Rd5 {[%clk 0:38:31]} 31. Rc8+ {[%clk 0:56:10]} Kh7 
{[%clk 0:38:28]} 32. Ree8 Rg4 {[%clk 0:33:22]} 33. Rh8+ {[%clk 0:55:24]} Kg6 
{[%clk 0:33:18]} 34. Rc6+ {[%clk 0:55:14]} Kh5 {[%clk 0:31:18]} 35. f3 
{[%clk 0:54:07]} Rxh4 {[%clk 0:27:59]} 36. Rg8 {[%clk 0:50:17]} Rd7 
{[%clk 0:24:36]} 37. g4+ {[%clk 0:43:31]} Kg5 {[%clk 0:23:38]} 38. Rf8 
{[%clk 0:43:10]} Rd5 {[%clk 0:22:33]} 39. Kg2 {[%clk 0:43:05]} d3 
{[%clk 0:19:04]} 40. Kg3 {[%clk 0:42:24]} Rxg4+ {[%clk 0:18:27]} 41. fxg4 
{[%clk 0:42:15]} d2 {[%clk 0:17:56]} 42. Rf1 {[%clk 0:38:40]} Rd3+ 
{[%clk 0:17:12]} 43. Kg2 {[%clk 0:38:09]} d1=Q {[%clk 0:16:44]} 44. Rxc5+ 
{[%clk 0:37:12]} Kxg4 {[%clk 0:16:27]} 45. Rxd1 {[%clk 0:37:05]} Rxd1 
{[%clk 0:16:24]} 46. Rc7 {[%clk 0:36:41]} Rd2+ {[%clk 0:16:12]} 47. Kg1 
{[%clk 0:36:36]} g5 {[%clk 0:15:57]} 0-1

[Event "Malawi Open Chess Chp"]
[Site "followchess.com"]
[Date "2022.06.11"]
[Round "4"]
[White "Mawango Davie"]
[Black "Kalambo Praise"]
[Result "0-1"]
[WhiteElo "1888"]
[BlackElo "1767"]
[ECO "C44"]
[WhiteFed "MAW"]
[BlackFed "MAW"]
[FCGameId "854555313"]
[WhiteFideId "20500238"]
[BlackFideId "20506112"]
[TimeControl "5400"]

1. e4 {[%clk 1:11:04]} e5 {[%clk 1:29:50]} 2. Nf3 {[%clk 1:10:56]} Nc6 
{[%clk 1:29:22]} 3. c3 {[%clk 1:10:16]} Nf6 {[%clk 1:28:56]} 4. d4 
{[%clk 1:10:05]} Nxe4 {[%clk 1:20:29]} 5. d5 {[%clk 1:09:53]} Nb8 
{[%clk 1:19:21]} 6. Nxe5 {[%clk 1:09:34]} Bd6 {[%clk 1:11:55]} 7. Nf3 
{[%clk 1:08:35]} O-O {[%clk 1:11:16]} 8. Be2 {[%clk 1:08:03]} Bc5 
{[%clk 1:10:32]} 9. O-O {[%clk 1:07:55]} d6 {[%clk 1:10:15]} 10. Be3 
{[%clk 1:06:49]} Bxe3 {[%clk 1:06:52]} 11. fxe3 {[%clk 1:06:39]} Nd7 
{[%clk 1:06:42]} 12. Nbd2 {[%clk 1:05:28]} Ndc5 {[%clk 1:05:54]} 13. Nxe4 
{[%clk 1:03:39]} Nxe4 14. Qd4 {[%clk 1:02:50]} f5 {[%clk 0:59:44]} 15. Rad1 
{[%clk 0:59:35]} Bd7 {[%clk 0:58:13]} 16. Bd3 {[%clk 0:58:51]} Ng5 
{[%clk 0:53:13]} 17. Nd2 {[%clk 0:57:12]} g6 {[%clk 0:50:43]} 18. e4 
{[%clk 0:55:06]} fxe4 {[%clk 0:48:31]} 19. Bxe4 {[%clk 0:53:49]} Qe7 
{[%clk 0:47:59]} 20. h4 {[%clk 0:51:48]} Nxe4 {[%clk 0:47:24]} 21. Nxe4 
{[%clk 0:51:04]} Bf5 {[%clk 0:47:03]} 22. Ng3 {[%clk 0:49:37]} Qe5 
{[%clk 0:43:58]} 23. Nxf5 {[%clk 0:46:58]} Rxf5 {[%clk 0:43:47]} 24. Rxf5 
{[%clk 0:46:18]} gxf5 {[%clk 0:42:39]} 25. Qd2 {[%clk 0:42:38]} Re8 
{[%clk 0:42:13]} 26. Qg5+ {[%clk 0:42:26]} Kh8 {[%clk 0:40:27]} 27. Rf1 
{[%clk 0:39:29]} Rf8 {[%clk 0:38:37]} 28. Qd2 {[%clk 0:32:56]} Re8 
{[%clk 0:34:54]} 29. Rf3 {[%clk 0:29:31]} Qe1+ {[%clk 0:29:50]} 30. Qxe1 
{[%clk 0:29:18]} Rxe1+ {[%clk 0:29:44]} 31. Kf2 {[%clk 0:29:10]} Re5 
{[%clk 0:29:43]} 32. Rd3 {[%clk 0:28:36]} Kg7 {[%clk 0:29:30]} 33. g3 
{[%clk 0:25:02]} Re4 {[%clk 0:28:54]} 34. Re3 {[%clk 0:23:29]} Kf6 
{[%clk 0:28:24]} 35. Rxe4 {[%clk 0:12:40]} fxe4 {[%clk 0:28:12]} 36. g4 
{[%clk 0:10:14]} Ke5 {[%clk 0:25:20]} 37. Ke3 {[%clk 0:09:01]} 0-1

[Event "Malawi Open Chess Chp"]
[Site "followchess.com"]
[Date "2022.06.11"]
[Round "4"]
[White "Sharra, Leonard"]
[Black "Kaunda, Kajani"]
[Result "1-0"]
[WhiteElo "1803"]
[BlackElo "1910"]
[ECO "C23"]
[WhiteFed "MAW"]
[BlackFed "MAW"]
[FCGameId "-94025475"]
[WhiteFideId "20500149"]
[BlackFideId "16400089"]
[TimeControl "5400"]

1. e4 {[%clk 1:26:43]} e5 {[%clk 1:28:41]} 2. Bc4 {[%clk 1:26:30]} Qe7 
{[%clk 1:28:13]} 3. d3 {[%clk 1:25:43]} h6 {[%clk 1:28:09]} 4. Ne2 
{[%clk 1:24:45]} Nf6 {[%clk 1:27:48]} 5. O-O {[%clk 1:23:19]} d6 
{[%clk 1:26:05]} 6. c3 {[%clk 1:20:13]} c6 {[%clk 1:25:54]} 7. Bb3 
{[%clk 1:20:09]} Qc7 {[%clk 1:25:46]} 8. h3 {[%clk 1:18:07]} Be7 
{[%clk 1:25:35]} 9. Ng3 {[%clk 1:16:29]} O-O {[%clk 1:25:20]} 10. f4 
{[%clk 1:15:56]} a5 {[%clk 1:25:04]} 11. d4 {[%clk 1:14:28]} Na6 
{[%clk 1:22:21]} 12. Be3 {[%clk 1:08:37]} c5 {[%clk 1:21:52]} 13. fxe5 
{[%clk 1:04:15]} dxe5 {[%clk 1:21:06]} 14. dxe5 {[%clk 1:04:11]} Nh7 
{[%clk 1:19:56]} 15. Qh5 {[%clk 0:58:15]} c4 {[%clk 1:03:04]} 16. Bc2 
{[%clk 0:57:30]} Bg5 {[%clk 1:02:30]} 17. Bd4 {[%clk 0:56:10]} g6 
{[%clk 0:51:42]} 18. Qe2 {[%clk 0:55:43]} f6 {[%clk 0:48:38]} 19. Na3 
{[%clk 0:48:21]} fxe5 {[%clk 0:37:48]} 20. Rxf8+ {[%clk 0:43:33]} Nxf8 
{[%clk 0:37:29]} 21. Be3 {[%clk 0:42:23]} Bxe3+ {[%clk 0:32:22]} 22. Qxe3 
{[%clk 0:40:12]} Kg7 {[%clk 0:30:18]} 23. Rf1 {[%clk 0:38:47]} Be6 
{[%clk 0:28:11]} 24. Kh2 {[%clk 0:36:20]} Nc5 {[%clk 0:26:21]} 25. Qf2 
{[%clk 0:33:35]} Nh7 {[%clk 0:20:16]} 26. Qe2 {[%clk 0:32:48]} Nd7 
{[%clk 0:19:46]} 27. Rd1 {[%clk 0:31:21]} Qc5 {[%clk 0:16:44]} 28. Nxc4 
{[%clk 0:28:34]} Ndf8 {[%clk 0:14:56]} 29. Ne3 {[%clk 0:25:45]} Bxa2 
{[%clk 0:11:02]} 30. c4 {[%clk 0:24:52]} 1-0

[Event "Malawi Open Chess Chp"]
[Site "followchess.com"]
[Date "2022.06.11"]
[Round "4"]
[White "Nyama Peter"]
[Black "Ngwira Davis Paul"]
[Result "1-0"]
[WhiteElo "1851"]
[BlackElo "1660"]
[ECO "A05"]
[WhiteFed "MAW"]
[BlackFed "MAW"]
[FCGameId "-1001264895"]
[WhiteFideId "20501927"]
[BlackFideId "20501447"]
[TimeControl "5400"]

1. Nf3 {[%clk 1:29:55]} Nf6 {[%clk 1:28:19]} 2. g3 {[%clk 1:29:36]} g6 
{[%clk 1:26:38]} 3. Bg2 {[%clk 1:29:26]} Bg7 {[%clk 1:26:13]} 4. O-O 
{[%clk 1:29:11]} O-O {[%clk 1:26:07]} 5. d3 {[%clk 1:28:58]} d5 {[%clk 1:25:41]} 
6. Nbd2 {[%clk 1:28:48]} c6 {[%clk 1:25:14]} 7. h3 {[%clk 1:27:34]} Re8 
{[%clk 1:25:04]} 8. Re1 {[%clk 1:26:10]} e5 {[%clk 1:24:44]} 9. e4 
{[%clk 1:25:29]} dxe4 {[%clk 1:22:20]} 10. Nxe4 {[%clk 1:23:10]} Nxe4 
{[%clk 1:21:58]} 11. Rxe4 {[%clk 1:21:14]} Bf5 {[%clk 1:19:50]} 12. Re1 
{[%clk 1:20:59]} e4 {[%clk 1:18:58]} 13. Nh4 {[%clk 1:15:26]} exd3 
{[%clk 1:15:57]} 14. Rxe8+ {[%clk 1:14:15]} Qxe8 {[%clk 1:15:47]} 15. Nxf5 
{[%clk 1:13:58]} dxc2 {[%clk 1:10:45]} 16. Qxc2 {[%clk 1:13:46]} gxf5 17. Qxf5 
{[%clk 1:13:21]} Qe6 {[%clk 1:07:54]} 18. Qg5 {[%clk 1:08:53]} Qe1+ 
{[%clk 1:04:08]} 19. Kh2 {[%clk 1:08:00]} Nd7 {[%clk 1:03:45]} 20. Qf5 
{[%clk 1:02:32]} Nf8 {[%clk 1:00:27]} 21. Rb1 {[%clk 0:59:35]} Qe6 
{[%clk 0:59:02]} 22. Qa5 {[%clk 0:56:35]} b6 {[%clk 0:57:02]} 23. Qa4 
{[%clk 0:56:19]} Qf5 {[%clk 0:56:29]} 24. Qe4 {[%clk 0:52:52]} Qxe4 
{[%clk 0:52:28]} 25. Bxe4 {[%clk 0:52:45]} Re8 {[%clk 0:50:11]} 26. Bd3 
{[%clk 0:47:04]} Re1 {[%clk 0:48:41]} 27. b3 {[%clk 0:46:43]} Ne6 
{[%clk 0:46:57]} 28. Bd2 {[%clk 0:43:33]} Re5 {[%clk 0:42:18]} 29. Be3 
{[%clk 0:40:33]} Ra5 {[%clk 0:40:48]} 30. a4 {[%clk 0:40:04]} Bd4 
{[%clk 0:40:30]} 31. Bd2 {[%clk 0:38:14]} Rd5 {[%clk 0:39:56]} 32. Bc4 
{[%clk 0:36:04]} Rd6 {[%clk 0:38:19]} 33. Be1 {[%clk 0:33:52]} Ng5 
{[%clk 0:36:48]} 34. Kg2 {[%clk 0:33:34]} Ne4 {[%clk 0:36:13]} 35. Rd1 
{[%clk 0:31:56]} c5 {[%clk 0:35:55]} 36. f3 {[%clk 0:31:28]} Nf6 37. Bc3 
{[%clk 0:30:59]} Nd7 {[%clk 0:34:34]} 38. Bxd4 {[%clk 0:30:18]} cxd4 
{[%clk 0:34:14]} 39. f4 {[%clk 0:30:09]} Nc5 {[%clk 0:33:06]} 40. Kf3 
{[%clk 0:29:51]} Kg7 {[%clk 0:31:59]} 41. g4 {[%clk 0:28:42]} h5 
{[%clk 0:28:37]} 42. gxh5 {[%clk 0:27:59]} f5 {[%clk 0:28:02]} 43. Rg1+ 
{[%clk 0:27:24]} Kh6 {[%clk 0:27:39]} 44. Bf7 {[%clk 0:26:07]} Ne4 
{[%clk 0:25:59]} 45. Rg6+ {[%clk 0:25:13]} Kh7 {[%clk 0:25:39]} 46. Rxd6 
{[%clk 0:23:45]} Nxd6 {[%clk 0:25:37]} 47. Bd5 {[%clk 0:19:03]} Kh6 
{[%clk 0:24:41]} 48. Ke2 {[%clk 0:18:58]} Ne4 {[%clk 0:22:20]} 49. Kd3 
{[%clk 0:18:39]} Nf2+ {[%clk 0:21:54]} 50. Kxd4 {[%clk 0:18:35]} Kxh5 
{[%clk 0:21:21]} 51. Ke5 {[%clk 0:16:30]} Kg6 {[%clk 0:20:46]} 52. Bc4 
{[%clk 0:15:49]} 1-0